bitfinex/quotes_SOLUSD_20220116
["timestamp","ask_amount","ask_price","bid_price","bid_amount"]
[1642306880819,22.8109,147.66,147.6,0.25]
[1642306881219,22.8109,147.66,147.6,0.26]
[1642306881621,22.8109,147.66,147.6,47.82161599]
[1642306881821,22.8109,147.66,147.6,54.07161599]
[1642306882023,11.4700992,147.67,147.6,55.42385498]
[1642306883322,11.4700992,147.67,147.6,54.42385498]
[1642306883926,11.4700992,147.67,147.6,53.23491512]
[1642306885224,11.4700992,147.67,147.61,0.26]
[1642306886727,1.9097019,147.71,147.61,0.26]
[1642306886923,1.9097019,147.71,147.62,9.84]
[1642306887131,1.9097019,147.71,147.63,23.1722]
[1642306887329,1.9097019,147.71,147.63,29.6822]
[1642306887529,24.4368,147.72,147.63,29.6822]
[1642306887732,41.35759534,147.7,147.63,29.6822]
[1642306889131,41.35759534,147.7,147.63,31.03443899]
[1642306893164,41.35759534,147.7,147.63,29.6822]
[1642306895870,41.35759534,147.7,147.64,77.88]
[1642306896270,41.35759534,147.7,147.65,0.26]
[1642306898270,41.35759534,147.7,147.64,16.09]
[1642306899775,41.35759534,147.7,147.65,0.26]
[1642306901274,41.35759534,147.7,147.64,16.09]
[1642306901473,41.35759534,147.7,147.65,0.26]
[1642306901675,41.35759534,147.7,147.64,16.09]
[1642306903074,0.26,147.69,147.64,16.09]
[1642306906481,0.26,147.69,147.64,10.09]
[1642306906684,41.35759534,147.7,147.64,10.09]
[1642306906881,41.35759534,147.7,147.65,0.26]
[1642306908114,41.35759534,147.7,147.65,32.28576368]
[1642306908288,0.053606,147.74,147.66,69.391774]
[1642306908487,0.053606,147.74,147.67,24.8505]
[1642306908689,0.053606,147.74,147.67,94.502274]
[1642306908888,0.053606,147.74,147.67,32.712274]
[1642306909088,0.053606,147.74,147.67,31.3605]
[1642306911588,0.053606,147.74,147.67,32.712274]
[1642306912898,0.053606,147.74,147.69,0.31942993]
[1642306913298,0.053606,147.74,147.67,40.9505]
[1642306915301,0.053606,147.74,147.67,41.2005]
[1642306917528,0.053606,147.74,147.68,68.04]
[1642306917728,0.053606,147.74,147.69,23.8447]
[1642306917928,0.053606,147.74,147.69,30.3547]
[1642306918928,0.053606,147.74,147.69,30.0947]
[1642306931346,0.053606,147.74,147.7,0.26]
[1642306935045,0.053606,147.74,147.7,30.03130551]
[1642306935348,0.053606,147.74,147.7,30.28130551]
[1642306937349,0.053606,147.74,147.7,36.28130551]
[1642306939656,0.053606,147.74,147.7,46.12130551]
[1642306940056,0.053606,147.74,147.7,115.51307951]
[1642306941757,0.053606,147.74,147.7,115.26307951]
[1642306943085,0.053606,147.74,147.7,115.51307951]
[1642306946493,0.053606,147.74,147.7,85.741774]
[1642306947792,0.053606,147.74,147.7,17.701774]
[1642306949395,0.053606,147.74,147.7,16.35]
[1642306951698,0.053606,147.74,147.7,17.44192824]
[1642306953499,0.053606,147.74,147.71,0.26]
[1642306954000,0.053606,147.74,147.72,3.03219997]
[1642306954409,0.053606,147.74,147.72,9.28219997]
[1642306955401,0.053606,147.74,147.73,0.26]
[1642306955601,0.053606,147.74,147.72,9.28219997]
[1642306955803,0.053606,147.74,147.72,3.28219997]
[1642306956401,0.053606,147.74,147.72,3.03219997]
[1642306956803,3.03219997,147.73,147.68,23.662]
[1642306957406,11.80845769,147.72,147.68,23.662]
[1642306957604,11.80845769,147.72,147.66,3.8814387]
[1642306957803,11.80845769,147.72,147.68,1.35192824]
[1642306958005,3.03219997,147.73,147.68,1.35192824]
[1642306958204,0.053606,147.74,147.69,0.26]
[1642306958605,0.053606,147.74,147.7,1.35192824]
[1642306958906,0.053606,147.74,147.71,0.26]
[1642306959707,0.053606,147.74,147.72,3.03219997]
[1642306959905,0.053606,147.74,147.73,0.26]
[1642306962411,0.093606,147.74,147.72,3.28219997]
[1642306962810,3.03219997,147.73,147.7,30.9951]
[1642306963010,3.03219997,147.73,147.67,3.8814387]
[1642306963212,3.03219997,147.73,147.69,0.26]
[1642306963713,3.03219997,147.73,147.68,6.25]
[1642306964211,3.03219997,147.73,147.68,0.25]
[1642306964422,3.03219997,147.73,147.67,7.60192824]
[1642306964813,3.03219997,147.73,147.68,1.35192824]
[1642306965015,3.03219997,147.73,147.68,1.61192824]
[1642306965213,3.03219997,147.73,147.68,7.86192824]
[1642306965613,3.03219997,147.73,147.68,1.86192824]
[1642306965814,3.03219997,147.73,147.68,0.51]
[1642306966013,3.03219997,147.73,147.68,0.25]
[1642306966413,3.03219997,147.73,147.67,0.26]
[1642306968144,3.03219997,147.73,147.67,1.61192824]
[1642306968345,3.03219997,147.73,147.67,7.86192824]
[1642306968645,3.03219997,147.73,147.67,75.90192824]
[1642306968845,0.053606,147.74,147.68,9.84]
[1642306969444,0.053606,147.74,147.69,1.61649256]
[1642306969846,0.053606,147.74,147.69,7.86649256]
[1642306975151,0.053606,147.74,147.69,7.60649256]
[1642306975354,0.053606,147.74,147.69,6.25]
[1642306975754,0.053606,147.74,147.69,0.25]
[1642306975954,0.053606,147.74,147.68,29.4689]
[1642306976960,0.053606,147.74,147.68,23.4689]
[1642306978357,0.053606,147.74,147.68,29.4689]
[1642306978963,0.313606,147.74,147.68,29.4689]
[1642306979561,39.83975446,147.75,147.68,23.4689]
[1642306979762,39.65336046,147.75,147.68,23.4689]
[1642306980761,39.65336046,147.75,147.68,29.4689]
[1642306981860,39.65336046,147.75,147.68,23.4689]
[1642306982061,39.65336046,147.75,147.68,29.4689]
[1642306982260,39.65336046,147.75,147.68,23.4689]
[1642306983962,39.65336046,147.75,147.68,29.4689]
[1642306984162,39.65336046,147.75,147.68,23.4689]
[1642306984361,39.65336046,147.75,147.69,0.26]
[1642306992870,39.65336046,147.75,147.69,10.1]
[1642306993371,39.65336046,147.75,147.69,16.35]
[1642306995470,39.65336046,147.75,147.69,10.35]
[1642306996875,39.65336046,147.75,147.69,11.70756542]
[1642306998775,39.65336046,147.75,147.69,17.70756542]
[1642306999073,39.65336046,147.75,147.69,7.86756542]
[1642306999275,39.65336046,147.75,147.69,1.86756542]
[1642306999877,39.65336046,147.75,147.69,7.86756542]
[1642307000082,39.65336046,147.75,147.69,1.86756542]
[1642307000276,39.65336046,147.75,147.69,7.86756542]
[1642307002308,39.65336046,147.75,147.69,1.86756542]
[1642307003915,39.65336046,147.75,147.7,1.86802422]
[1642307004313,39.65336046,147.75,147.7,2.11802422]
[1642307006116,39.65336046,147.75,147.7,8.11802422]
[1642307011529,39.65336046,147.75,147.7,2.11802422]
[1642307025938,39.65336046,147.75,147.7,1.86802422]
[1642307027236,39.65336046,147.75,147.7,0.25]
[1642307027440,39.65336046,147.75,147.68,23.2189]
[1642307027640,39.65336046,147.75,147.69,0.25]
[1642307027839,22.9803,147.74,147.67,1.35756542]
[1642307029366,22.9803,147.74,147.67,1.60756542]
[1642307029767,22.9803,147.74,147.67,7.60756542]
[1642307029969,22.9803,147.74,147.67,1.60756542]
[1642307030167,22.9803,147.74,147.68,0.26]
[1642307032571,22.9803,147.74,147.68,10.1]
[1642307032769,22.9803,147.74,147.68,11.45756542]
[1642307032971,22.9803,147.74,147.68,17.70756542]
[1642307038477,39.65336046,147.75,147.68,17.70756542]
[1642307039776,39.65336046,147.75,147.69,3.81810736]
[1642307039978,39.65336046,147.75,147.69,4.06810736]
[1642307040177,39.65336046,147.75,147.7,0.26]
[1642307042075,39.65336046,147.75,147.69,0.26]
[1642307043779,39.65336046,147.75,147.7,9.84]
[1642307044182,39.65336046,147.75,147.71,0.26]
[1642307048688,39.65336046,147.75,147.71,1.61742306]
[1642307048889,39.65336046,147.75,147.71,1.86742306]
[1642307049086,39.65336046,147.75,147.71,7.86742306]
[1642307053788,39.65336046,147.75,147.71,7.60742306]
[1642307055888,39.65336046,147.75,147.72,0.26]
[1642307056492,39.65336046,147.75,147.73,3.03219997]
[1642307056690,42.68556043,147.75,147.73,3.03219997]
[1642307056890,42.68556043,147.75,147.73,3.28219997]
[1642307057491,39.65336046,147.75,147.73,3.28219997]
[1642307063432,39.69336046,147.75,147.73,3.28219997]
[1642307063632,3.03219997,147.74,147.73,0.25]
[1642307063835,3.03219997,147.74,147.7,0.26]
[1642307064232,3.03219997,147.74,147.68,23.9198072]
[1642307064435,28.27599997,147.74,147.68,9.7126072]
[1642307064734,28.27599997,147.74,147.68,3.7126072]
[1642307064932,38.52384636,147.73,147.68,3.7126072]
[1642307065333,38.77384636,147.73,147.68,3.7126072]
[1642307066134,38.77384636,147.73,147.66,94.4]
[1642307066335,38.77384636,147.73,147.66,94.65]
[1642307066734,38.77384636,147.73,147.66,94.4]
[1642307068435,38.77384636,147.73,147.66,94.65]
[1642307068834,38.52384636,147.73,147.66,94.65]
[1642307069236,38.77384636,147.73,147.66,94.65]
[1642307070238,38.77384636,147.73,147.66,94.4]
[1642307070436,38.77384636,147.73,147.66,94.65]
[1642307073442,38.52384636,147.73,147.66,94.65]
[1642307073644,38.52384636,147.73,147.66,96.00224712]
[1642307074042,38.52384636,147.73,147.66,102.00224712]
[1642307074846,38.77384636,147.73,147.66,102.00224712]
[1642307076248,38.52384636,147.73,147.66,102.00224712]
[1642307076848,38.77384636,147.73,147.66,102.00224712]
[1642307078451,38.77384636,147.73,147.66,96.00224712]
[1642307079755,38.77384636,147.73,147.66,94.65]
[1642307080054,0.25,147.73,147.63,99.46138629]
[1642307080251,24.9275,147.72,147.63,98.1126072]
[1642307080453,24.42277518,147.71,147.63,94.4]
[1642307080677,24.5448,147.7,147.63,94.4]
[1642307080881,24.7948,147.7,147.63,94.4]
[1642307081280,24.7948,147.7,147.64,0.26]
[1642307081483,24.7948,147.7,147.63,94.65]
[1642307084084,24.7948,147.7,147.63,95.99877909]
[1642307084385,24.7948,147.7,147.63,92.84612036]
[1642307084582,24.7948,147.7,147.63,0.25]
[1642307084985,24.7948,147.7,147.61,110.49]
[1642307088087,24.7948,147.7,147.61,111.83877909]
[1642307089890,24.7948,147.7,147.61,111.58877909]
[1642307091392,24.7948,147.7,147.61,111.83877909]
[1642307091592,30.7948,147.7,147.61,111.83877909]
[1642307091791,24.7948,147.7,147.61,110.49]
[1642307091991,30.7948,147.7,147.61,110.49]
[1642307095795,30.7948,147.7,147.61,110.24]
[1642307096005,30.7948,147.7,147.61,100.4]
[1642307098503,30.5448,147.7,147.61,100.65]
[1642307098705,24.5448,147.7,147.61,102.00789937]
[1642307100003,24.7948,147.7,147.61,102.00789937]
[1642307100208,24.7948,147.7,147.61,143.81994812]
[1642307100705,24.7948,147.7,147.61,102.00789937]
[1642307105111,24.7948,147.7,147.61,100.65]
[1642307106812,30.7948,147.7,147.61,102.00789937]
[1642307107034,24.7948,147.7,147.61,102.00789937]
[1642307107735,24.7948,147.7,147.61,100.65]
[1642307107936,24.7948,147.7,147.61,100.4]
[1642307108137,24.7948,147.7,147.61,100.65]
[1642307108935,30.7948,147.7,147.61,100.65]
[1642307109136,24.7948,147.7,147.61,100.65]
[1642307109336,24.7948,147.7,147.61,100.4]
[1642307109739,30.7948,147.7,147.61,94.4]
[1642307109936,30.7948,147.7,147.6,98.1126072]
[1642307110336,30.7948,147.7,147.6,94.4]
[1642307110337,9.84,147.69,147.6,94.4]
[1642307110538,7.70774733,147.68,147.6,94.4]
[1642307110737,31.18464733,147.68,147.6,94.4]
[1642307110938,37.43464733,147.68,147.6,94.4]
[1642307114141,105.47464733,147.68,147.6,94.4]
[1642307115248,105.47464733,147.68,147.6,93.96893416]
[1642307115550,77.88,147.67,147.6,93.96893416]
[1642307115752,77.88,147.67,147.56,94.4]
[1642307115949,92.646,147.67,147.56,94.65]
[1642307116552,34.768,147.67,147.56,94.65]
[1642307116849,24.606,147.67,147.56,94.65]
[1642307117049,16.09,147.67,147.56,94.65]
[1642307117663,16.09,147.67,147.56,94.4]
[1642307117851,84.13,147.67,147.56,94.4]
[1642307119756,84.13,147.67,147.56,94.65]
[1642307122760,89.525,147.67,147.56,94.65]
[1642307123563,89.525,147.67,147.56,94.4]
[1642307123761,99.6873,147.67,147.56,94.4]
[1642307131398,222.6573,147.67,147.56,92.92663311]
[1642307131798,68.04,147.64,147.5,117.1935]
[1642307132002,68.04,147.64,147.5,100.4]
[1642307132003,68.04,147.6,147.5,100.4]
[1642307132198,23.3596,147.59,147.5,100.4]
[1642307132400,21.46005647,147.58,147.5,100.4]
[1642307132600,24.185,147.57,147.5,100.4]
[1642307133000,30.435,147.57,147.5,100.4]
[1642307133300,30.435,147.57,147.5,100.65]
[1642307133899,30.435,147.57,147.5,100.4]
[1642307136501,39.329,147.57,147.5,100.4]
[1642307137407,39.329,147.57,147.5,94.4]
[1642307140904,107.369,147.57,147.5,94.4]
[1642307141606,107.369,147.57,147.45,22.8904]
[1642307141806,77.88,147.56,147.44,99.47050657]
[1642307142009,78.2113,147.54,147.44,98.1126072]
[1642307142205,68.04,147.52,147.44,98.1126072]
[1642307142405,74.29,147.52,147.44,94.4]
[1642307146711,6.25,147.52,147.44,94.4]
[1642307146912,0.25,147.52,147.44,94.4]
[1642307147109,6.25,147.52,147.44,94.4]
[1642307147315,6.0,147.52,147.44,94.4]
[1642307147512,6.25,147.52,147.44,94.4]
[1642307148417,0.25,147.52,147.44,94.4]
[1642307148617,6.25,147.52,147.44,94.4]
[1642307149217,0.25,147.52,147.44,94.4]
[1642307149417,6.0,147.52,147.44,94.4]
[1642307149617,30.31498253,147.53,147.44,94.4]
[1642307149822,46.15498253,147.53,147.44,118.8483]
[1642307152722,46.15498253,147.53,147.44,119.0983]
[1642307153121,46.15498253,147.53,147.44,118.8483]
[1642307156227,114.19498253,147.53,147.44,118.8483]
[1642307161457,114.19498253,147.53,147.44,120.7670383]
[1642307162960,108.19498253,147.53,147.44,120.7670383]
[1642307163262,114.19498253,147.53,147.44,120.7670383]
[1642307164761,46.15498253,147.53,147.44,120.7670383]
[1642307164960,114.19498253,147.53,147.44,120.7670383]
[1642307165261,46.15498253,147.53,147.44,120.7670383]
[1642307165469,40.15498253,147.53,147.44,120.7670383]
[1642307165864,46.15498253,147.53,147.44,120.7670383]
[1642307166564,40.15498253,147.53,147.44,120.7670383]
[1642307167263,46.15498253,147.53,147.44,120.7670383]
[1642307167864,46.15498253,147.53,147.45,1.9187383]
[1642307168065,40.15498253,147.53,147.45,1.9187383]
[1642307168267,21.67618253,147.53,147.45,1.9187383]
[1642307168567,5.83618253,147.53,147.46,1.36243709]
[1642307168866,5.83618253,147.53,147.45,43.20167354]
[1642307169067,11.83618253,147.53,147.45,1.9187383]
[1642307169669,11.83618253,147.53,147.46,1.9187383]
[1642307170767,5.83618253,147.53,147.46,1.9187383]
[1642307171669,11.83618253,147.53,147.46,1.9187383]
[1642307172068,11.83618253,147.53,147.47,1.9187383]
[1642307176476,9.84,147.52,147.47,1.9187383]
[1642307176873,16.09,147.52,147.47,1.9187383]
[1642307177274,16.09,147.52,147.46,1.9187383]
[1642307181384,26.2626,147.52,147.46,1.9187383]
[1642307181785,20.11184606,147.5,147.43,1.9187383]
[1642307181984,9.84,147.49,147.43,1.9187383]
[1642307182387,16.09,147.49,147.43,1.9187383]
[1642307182586,40.6912,147.49,147.43,1.9187383]
[1642307182889,40.6912,147.49,147.42,1.9187383]
[1642307183686,40.6912,147.49,147.43,1.9187383]
[1642307184590,16.09,147.49,147.43,1.9187383]
[1642307185917,9.84,147.49,147.43,1.9187383]
[1642307186419,10.09,147.49,147.43,1.9187383]
[1642307186822,16.09,147.49,147.43,1.9187383]
[1642307187019,16.09,147.49,147.44,1.9187383]
[1642307188022,16.09,147.49,147.43,1.9187383]
[1642307188521,10.09,147.49,147.44,47.14515777]
[1642307188922,10.09,147.49,147.43,1.9187383]
[1642307189322,9.84,147.49,147.43,2.1687383]
[1642307189935,9.84,147.49,147.44,47.37601282]
[1642307190323,9.84,147.49,147.44,47.62601282]
[1642307190528,9.84,147.49,147.44,49.54475112]
[1642307191424,20.11184606,147.5,147.44,49.54475112]
[1642307191627,20.36184606,147.5,147.44,49.54475112]
[1642307191826,20.36184606,147.5,147.44,2.1687383]
[1642307192826,26.36184606,147.5,147.44,2.1687383]
[1642307193227,36.20184606,147.5,147.44,2.1687383]
[1642307194229,36.20184606,147.5,147.44,1.9187383]
[1642307194428,36.20184606,147.5,147.44,2.1687383]
[1642307196631,36.20184606,147.5,147.44,1.9187383]
[1642307205567,30.20184606,147.5,147.44,1.9187383]
[1642307206568,36.20184606,147.5,147.44,1.9187383]
[1642307208169,43.42884606,147.5,147.44,1.9187383]
[1642307208368,43.42884606,147.5,147.41,3.7126072]
[1642307208571,24.5707,147.49,147.41,3.7126072]
[1642307208779,9.84,147.48,147.41,3.7126072]
[1642307208969,6.93439294,147.47,147.38,26.2964072]
[1642307209169,33.7266,147.46,147.38,26.5464072]
[1642307209370,39.9766,147.46,147.38,26.5464072]
[1642307210172,39.9766,147.46,147.38,22.8338]
[1642307215077,39.7266,147.46,147.38,22.8338]
[1642307216075,39.7266,147.46,147.35,3.7126072]
[1642307216277,47.8156,147.46,147.35,2.22040227]
[1642307216476,122.97,147.44,147.32,5.5689108]
[1642307216676,122.97,147.42,147.32,4.92214492]
[1642307216881,9.84,147.41,147.25,539.46146079]
[1642307217077,140.53282108,147.4,147.25,539.46146079]
[1642307217276,9.84,147.39,147.25,539.46146079]
[1642307217480,191.01,147.38,147.25,539.46146079]
[1642307217680,9.84,147.37,147.25,539.46146079]
[1642307217978,16.09,147.37,147.25,5.78534759]
[1642307218176,6.93439294,147.36,147.25,5.78534759]
[1642307218376,10.1863,147.33,147.25,5.78534759]
[1642307218577,9.84,147.32,147.25,5.78534759]
[1642307218979,16.09,147.32,147.25,5.78534759]
[1642307219381,68.04,147.31,147.25,5.78534759]
[1642307219580,1.14114255,147.29,147.25,5.78534759]
[1642307219779,9.84,147.28,147.18,9.281518]
[1642307220181,16.09,147.28,147.18,9.281518]
[1642307220584,6.93439294,147.27,147.18,9.281518]
[1642307220783,6.93439294,147.27,147.18,15.531518]
[1642307220986,13.18439294,147.27,147.18,6.25]
[1642307222486,13.18439294,147.27,147.17,54.02434154]
[1642307222685,13.18439294,147.27,147.17,54.27434154]
[1642307223187,13.18439294,147.27,147.17,6.25]
[1642307223384,81.22439294,147.27,147.17,0.25]
[1642307223884,81.22439294,147.27,147.16,6.0]
[1642307224085,9.84,147.26,147.16,6.0]
[1642307224287,9.84,147.26,147.15,9.8344465]
[1642307224487,16.09,147.26,147.15,3.8344465]
[1642307224686,68.04,147.25,147.15,9.8344465]
[1642307224886,9.84,147.24,147.15,9.8344465]
[1642307225089,9.84,147.24,147.15,3.8344465]
[1642307225292,16.09,147.24,147.15,3.8344465]
[1642307225487,84.13,147.24,147.15,3.8344465]
[1642307225687,17.56282108,147.23,147.15,3.8344465]
[1642307225889,9.84,147.22,147.15,4.0844465]
[1642307226288,17.81282108,147.23,147.15,10.0844465]
[1642307226488,17.81282108,147.23,147.15,4.0844465]
[1642307226690,17.81282108,147.23,147.15,3.8344465]
[1642307226993,17.81282108,147.23,147.15,4.0844465]
[1642307227892,17.81282108,147.23,147.15,10.0844465]
[1642307228995,23.81282108,147.23,147.15,9.5844465]
[1642307229196,23.81282108,147.23,147.15,9.3344465]
[1642307229395,9.84,147.22,147.15,9.3344465]
[1642307229796,10.09,147.22,147.15,9.3344465]
[1642307230796,10.09,147.22,147.15,6.0]
[1642307230997,10.09,147.22,147.11,53.41218132]
[1642307231797,10.09,147.22,147.11,6.25]
[1642307232009,10.09,147.22,147.11,0.25]
[1642307232200,10.09,147.22,147.1,0.26]
[1642307232805,10.09,147.22,147.1,48.85028725]
[1642307233203,10.09,147.22,147.1,55.10028725]
[1642307234206,16.09,147.22,147.1,55.10028725]
[1642307236010,16.13,147.22,147.1,55.10028725]
[1642307237012,16.13,147.22,147.1,54.85028725]
[1642307238332,40.9382,147.22,147.1,55.10028725]
[1642307244832,40.9382,147.22,147.1,6.25]
[1642307245233,40.9382,147.22,147.1,0.25]
[1642307245435,40.9382,147.22,147.09,46.6932]
[1642307245636,68.04,147.21,147.05,94.4]
[1642307245838,68.04,147.21,147.06,22.5297]
[1642307245839,34.181,147.2,147.06,22.5297]
[1642307246038,6.93439294,147.19,147.07,39.30391939]
[1642307246243,9.84,147.18,147.07,39.30391939]
[1642307246441,16.09,147.18,147.07,39.30391939]
[1642307246743,16.09,147.18,147.07,0.25]
[1642307246942,24.2794,147.17,147.06,28.7797]
[1642307247153,9.84,147.16,147.06,28.7797]
[1642307247350,10.09,147.16,147.06,28.7797]
[1642307247550,17.56282108,147.15,147.07,44.05104264]
[1642307247749,17.56282108,147.15,147.06,28.7797]
[1642307247952,17.81282108,147.15,147.06,28.7797]
[1642307248151,23.81282108,147.15,147.06,28.7797]
[1642307248350,23.81282108,147.15,147.07,3.86146998]
[1642307248751,23.81282108,147.15,147.07,10.11146998]
[1642307249356,9.84,147.14,147.07,10.11146998]
[1642307249754,16.09,147.14,147.07,10.11146998]
[1642307250455,10.09,147.14,147.07,6.25]
[1642307250665,10.09,147.14,147.07,0.25]
[1642307250863,10.09,147.14,147.07,6.0]
[1642307251060,16.09,147.14,147.07,6.0]
[1642307251260,10.09,147.14,147.07,6.25]
[1642307251460,10.09,147.14,147.07,0.25]
[1642307252261,10.09,147.14,147.06,44.04190009]
[1642307252862,10.09,147.14,147.07,3.85923488]
[1642307253362,16.09,147.14,147.07,9.85923488]
[1642307254363,10.09,147.14,147.07,9.85923488]
[1642307254964,10.09,147.14,147.07,6.0]
[1642307255367,16.09,147.14,147.06,47.22338441]
[1642307255668,10.09,147.14,147.06,47.47338441]
[1642307256069,16.09,147.14,147.06,47.47338441]
[1642307257698,16.09,147.14,147.06,6.25]
[1642307258394,16.09,147.14,147.06,0.25]
[1642307258596,16.09,147.14,147.05,100.65]
[1642307258994,39.4643,147.14,147.05,100.65]
[1642307259597,6.48769102,147.13,147.05,6.0]
[1642307259797,77.88,147.12,147.05,6.0]
[1642307259997,77.88,147.12,147.02,6.0]
[1642307260196,84.13,147.12,147.02,6.0]
[1642307260497,6.93439294,147.11,146.99,6.0]
[1642307260725,9.84,147.1,146.98,94.4]
[1642307260898,26.2916,147.1,146.98,94.4]
[1642307261100,68.04,147.09,146.97,3.3344465]
[1642307261302,101.9036,147.08,146.97,3.3344465]
[1642307261501,27.40282108,147.07,146.97,3.3344465]
[1642307261900,33.65282108,147.07,146.97,3.3344465]
[1642307262302,27.65282108,147.07,146.97,3.5844465]
[1642307262602,27.65282108,147.07,146.97,3.3344465]
[1642307262804,27.65282108,147.07,146.97,3.5844465]
[1642307263003,6.48769102,147.06,146.97,3.5844465]
[1642307263206,16.32769102,147.06,146.97,3.5844465]
[1642307263404,16.57769102,147.06,146.97,3.5844465]
[1642307263605,16.32769102,147.06,146.97,3.5844465]
[1642307264405,22.32769102,147.06,146.97,3.5844465]
[1642307264805,22.57769102,147.06,146.97,3.5844465]
[1642307265009,16.57769102,147.06,146.97,3.5844465]
[1642307265206,16.57769102,147.06,146.98,0.26]
[1642307265406,6.73769102,147.06,146.99,50.31764841]
[1642307265822,6.73769102,147.06,146.99,56.56764841]
[1642307266012,6.48769102,147.06,146.99,50.56764841]
[1642307266211,6.48769102,147.06,146.99,56.56764841]
[1642307266814,6.48769102,147.06,147.0,0.26]
[1642307267210,6.48769102,147.08,147.01,9.84]
[1642307267414,6.48769102,147.08,147.02,0.26]
[1642307267610,6.48769102,147.08,147.02,46.64513757]
[1642307267810,6.48769102,147.08,147.02,46.38513757]
[1642307268013,6.48769102,147.08,147.02,52.63513757]
[1642307270339,31.26309102,147.15,147.03,0.26]
[1642307270537,41.10309102,147.15,147.03,0.26]
[1642307270739,47.35309102,147.15,147.03,0.26]
[1642307270944,19.66047536,147.14,147.03,0.26]
[1642307271342,19.91047536,147.14,147.03,0.26]
[1642307272040,19.66047536,147.14,147.03,0.26]
[1642307273442,6.48769102,147.13,147.02,52.63513757]
[1642307273647,6.48769102,147.13,147.03,0.26]
[1642307273843,6.73769102,147.13,147.03,0.26]
[1642307276548,6.48769102,147.13,147.03,0.26]
[1642307276747,6.73769102,147.13,147.03,0.26]
[1642307277046,6.48769102,147.13,147.03,0.26]
[1642307279550,6.48769102,147.13,147.03,10.1]
[1642307279950,6.48769102,147.13,147.03,16.35]
[1642307280857,6.73769102,147.13,147.03,16.35]
[1642307281254,6.48769102,147.13,147.03,16.35]
[1642307281452,6.73769102,147.13,147.03,16.35]
[1642307283158,6.48769102,147.13,147.03,16.35]
[1642307283758,6.48769102,147.13,147.04,3.85879033]
[1642307283957,6.48769102,147.13,147.05,38.62941111]
[1642307284356,6.48769102,147.13,147.05,44.87941111]
[1642307285858,6.73769102,147.13,147.05,44.87941111]
[1642307287663,6.48769102,147.13,147.05,46.24258274]
[1642307287863,6.48769102,147.13,147.05,45.99258274]
[1642307288865,6.48769102,147.13,147.05,114.03258274]
[1642307289065,6.48769102,147.13,147.05,45.99258274]
[1642307289266,6.73769102,147.13,147.05,46.24258274]
[1642307290268,6.73769102,147.13,147.05,56.08258274]
[1642307290868,6.48769102,147.13,147.05,124.12258274]
[1642307293569,6.48769102,147.13,147.05,124.43320294]
[1642307293769,6.48769102,147.16,147.05,124.43320294]
[1642307294493,6.48769102,147.16,147.05,149.20550294]
[1642307294691,6.48769102,147.16,147.06,3.86277017]
[1642307294891,6.48769102,147.16,147.07,10.1]
[1642307295092,6.48769102,147.16,147.08,46.87689168]
[1642307295296,6.48769102,147.16,147.09,77.88]
[1642307295499,6.48769102,147.16,147.09,78.14]
[1642307295702,6.48769102,147.16,147.09,85.74624857]
[1642307295897,6.48769102,147.16,147.1,1.35624857]
[1642307296095,6.48769102,147.16,147.11,59.54338948]
[1642307296296,6.48769102,147.16,147.11,59.80338948]
[1642307296497,6.48769102,147.16,147.11,60.05338948]
[1642307296898,6.48769102,147.18,147.11,60.05338948]
[1642307297299,6.73769102,147.18,147.11,60.05338948]
[1642307297701,6.73769102,147.18,147.11,66.05338948]
[1642307300607,6.73769102,147.18,147.11,134.09338948]
[1642307302208,6.73769102,147.18,147.11,135.44963805]
[1642307302407,6.73769102,147.18,147.11,142.59663805]
[1642307302807,6.48769102,147.18,147.11,142.59663805]
[1642307303308,6.48769102,147.22,147.11,142.59663805]
[1642307303709,6.73769102,147.22,147.11,142.59663805]
[1642307303907,24.41141914,147.21,147.11,142.59663805]
[1642307304308,24.66141914,147.21,147.11,142.59663805]